fUST/lending_fUST_20240612
["ID","MTS","AMOUNT","RATE_DAILY","PERIOD"]
[329194761,1718169048231,-500.0,0.0001726,2]
[329194762,1718169048240,-500.0,0.0001726,2]
[329194763,1718169048251,-500.0,0.0001726,2]
[329194764,1718169048262,-2648.17,0.0001726,2]
[329194765,1718169048273,-500.0,0.0001726,2]
[329194766,1718169048283,-500.0,0.0001726,2]
[329194767,1718169048293,-500.0,0.0001726,2]
[329194768,1718169048303,-181.01723756,0.0001726,2]
[329194770,1718169048320,-500.0,0.0001726,2]
[329194772,1718169048330,-608.5664255,0.0001726,2]
[329194773,1718169048340,-509.65,0.0001726,2]
[329194774,1718169048354,-500.0,0.0001726,2]
[329194775,1718169048364,-500.0,0.0001726,2]
[329194776,1718169048374,-500.0,0.0001726,2]
[329194777,1718169048384,-637.75,0.0001726,2]
[329194778,1718169048404,-500.0,0.0001726,2]
[329194779,1718169048414,-1134.13,0.0001726,2]
[329194780,1718169048425,-500.0,0.0001726,2]
[329194781,1718169048435,-500.0,0.0001726,2]
[329194782,1718169048445,-500.0,0.0001726,2]
[329194783,1718169048455,-500.0,0.0001726,2]
[329194784,1718169048466,-500.0,0.0001726,2]
[329194785,1718169048477,-414.94125771,0.0001726,2]
[329194786,1718169048487,-500.0,0.0001726,2]
[329194787,1718169048498,-500.0,0.0001726,2]
[329194788,1718169048508,-500.0,0.0001726,2]
[329194789,1718169048518,-497.2827873,0.0001726,2]
[329194790,1718169048529,-500.0,0.0001726,2]
[329194791,1718169048539,-500.0,0.0001726,2]
[329194792,1718169048571,-524.03763182,0.0001726,2]
[329194793,1718169048582,-500.0,0.0001726,2]
[329194794,1718169048593,-500.0,0.0001726,2]
[329194795,1718169048602,-231.01724976,0.0001726,2]
[329194796,1718169048613,-394.51617628,0.0001726,2]
[329194797,1718169048623,-715.2,0.0001726,2]
[329194798,1718169048633,-500.0,0.0001726,2]
[329194799,1718169048644,-500.0,0.0001726,2]
[329194800,1718169048655,-500.0,0.0001726,2]
[329194801,1718169048665,-500.0,0.0001726,2]
[329194802,1718169048675,-506.61612816,0.0001726,2]
[329194803,1718169048685,-500.0,0.0001726,2]
[329194804,1718169048695,-500.0,0.0001726,2]
[329194805,1718169048706,-8622.5,0.0001726,2]
[329194806,1718169048717,-500.0,0.0001726,2]
[329194807,1718169048727,-669.69,0.0001726,2]
[329194808,1718169048737,-500.0,0.0001726,2]
[329194809,1718169048750,-500.0,0.0001726,2]
[329194810,1718169048761,-500.0,0.0001726,2]
[329194811,1718169048771,-500.0,0.0001726,2]
[329194812,1718169048781,-452.0423775,0.0001726,2]
[329194813,1718169048792,-500.0,0.0001726,2]
[329194814,1718169048803,-520.41,0.0001726,2]
[329194815,1718169048813,-500.0,0.0001726,2]
[329194816,1718169048824,-2928.43,0.0001726,2]
[329194817,1718169048836,-500.0,0.0001726,2]
[329194818,1718169048847,-1488.13,0.0001726,2]
[329194819,1718169048859,-603.04,0.0001726,2]
[329194820,1718169048871,-500.0,0.0001726,2]
[329194821,1718169048881,-1817.66,0.0001726,2]
[329194822,1718169048891,-171.83139416,0.0001726,2]
[329194823,1718169048901,-500.0,0.0001726,2]
[329194824,1718169048912,-500.0,0.0001726,2]
[329194825,1718169048922,-500.0,0.0001726,2]
[329194826,1718169048932,-625.44,0.0001726,2]
[329194827,1718169048943,-500.0,0.0001726,2]
[329194828,1718169048953,-7201.36,0.0001726,2]
[329194829,1718169048964,-500.0,0.0001726,2]
[329194830,1718169048974,-505.82617998,0.0001726,2]
[329194831,1718169048984,-500.0,0.0001726,2]
[329194832,1718169048996,-500.0,0.0001726,2]
[329194833,1718169049007,-502.71221611,0.0001726,2]
[329194834,1718169049018,-500.0,0.0001726,2]
[329194835,1718169049029,-2018.92,0.0001726,2]
[329194836,1718169049039,-500.0,0.0001726,2]
[329194837,1718169049058,-5339.09,0.0001726,2]
[329194838,1718169049068,-541.88,0.0001726,2]
[329194839,1718169049078,-500.0,0.0001726,2]
[329194840,1718169049088,-500.0,0.0001726,2]
[329194841,1718169049099,-500.0,0.0001726,2]
[329194842,1718169049109,-561.26486344,0.0001726,2]
[329194843,1718169049119,-500.0,0.0001726,2]
[329194844,1718169049129,-1019.32,0.0001726,2]
[329194845,1718169049139,-500.0,0.0001726,2]
[329194846,1718169049150,-510.8459868,0.0001726,2]
[329194847,1718169049160,-500.0,0.0001726,2]
[329194848,1718169049171,-500.0,0.0001726,2]
[329194849,1718169049186,-1755.11,0.0001726,2]
[329194850,1718169049196,-506.08061859,0.0001726,2]
[329194851,1718169049206,-500.0,0.0001726,2]
[329194852,1718169049216,-500.0,0.0001726,2]
[329194853,1718169049227,-500.0,0.0001726,2]
[329194854,1718169049237,-845.63,0.0001726,2]
[329194855,1718169049248,-500.0,0.0001726,2]
[329194856,1718169049259,-1147.04,0.0001726,2]
[329194857,1718169049269,-728.52057922,0.00017366,2]
[329194858,1718169049280,-212.0,0.00017433,2]
[329194859,1718169049291,-500.0,0.00017533,2]
[329194860,1718169049301,-577.38,0.00017533,2]
[329194861,1718169049312,-1985.97,0.00017533,2]
[329194862,1718169049323,-609.35,0.00017533,2]
[329194863,1718169049333,-500.0,0.00017534,4]
[329194864,1718169049343,-500.0,0.00017534,2]
[329194865,1718169049354,-286.3,0.00017534,2]
[329194866,1718169049365,-500.0,0.00017534,2]
[329194867,1718169049375,-258.63426424,0.00017534,2]
[329194868,1718169049385,-500.0,0.00017534,2]
[329194869,1718169049395,-2648.17,0.00017534,2]
[329194870,1718169049406,-500.0,0.00017534,2]
[329194871,1718169049416,-500.0,0.00017534,2]
[329194872,1718169049427,-500.0,0.00017534,2]
[329194873,1718169049436,-500.0,0.00017534,2]
[329194874,1718169049452,-509.65,0.00017534,2]
[329194875,1718169049462,-500.0,0.00017534,2]
[329194876,1718169049472,-209.58979908,0.00017534,2]
[329194877,1718169049482,-637.75,0.00017534,2]
[329194878,1718169049492,-594.44080615,0.00017534,2]
[329194879,1718169049502,-1134.13,0.00017534,2]
[329194880,1718169049513,-500.0,0.00017534,2]
[329194881,1718169049524,-500.0,0.00017534,2]
[329194882,1718169049534,-500.0,0.00017534,2]
[329194883,1718169049546,-500.0,0.00017534,2]
[329194884,1718169049561,-150.09224169,0.00017534,2]
[329194885,1718169049574,-500.0,0.00017534,2]
[329194886,1718169049586,-500.0,0.00017534,2]
[329194887,1718169049596,-350.97767471,0.00017534,2]
[329194888,1718169049608,-500.0,0.00017534,2]
[329194889,1718169049619,-500.0,0.00017534,2]
[329194890,1718169049629,-715.2,0.00017534,2]
[329194891,1718169049640,-500.0,0.00017534,2]
[329194892,1718169049650,-500.0,0.00017534,2]
[329194893,1718169049660,-500.0,0.00017534,2]
[329194894,1718169049669,-500.0,0.00017534,2]
[329194895,1718169049680,-500.0,0.00017534,2]
[329194896,1718169049690,-500.0,0.00017534,2]
[329194897,1718169049700,-8622.5,0.00017534,2]
[329194898,1718169049710,-500.0,0.00017534,2]
[329194899,1718169049722,-669.69,0.00017534,2]
[329194900,1718169049734,-500.0,0.00017534,2]
[329194901,1718169049743,-500.0,0.00017534,2]
[329194902,1718169049754,-500.0,0.00017534,2]
[329194903,1718169049764,-500.0,0.00017534,2]
[329194904,1718169049774,-500.0,0.00017534,2]
[329194905,1718169049784,-520.41,0.00017534,2]
[329194906,1718169049793,-500.0,0.00017534,2]
[329194907,1718169049804,-2928.43,0.00017534,2]
[329194908,1718169049815,-505.75035938,0.00017534,2]
[329194909,1718169049825,-1488.13,0.00017534,2]
[329194910,1718169049835,-603.04,0.00017534,2]
[329194911,1718169049845,-504.51474086,0.00017534,2]
[329194912,1718169049854,-1817.66,0.00017534,2]
[329194913,1718169049864,-511.80827517,0.00017534,2]
[329194914,1718169049874,-500.0,0.00017534,2]
[329194915,1718169049883,-500.0,0.00017534,2]
[329194916,1718169049997,-625.44,0.00017534,2]
[329194917,1718169050020,-500.0,0.00017534,2]
[329194918,1718169050031,-7201.36,0.00017534,2]
[329194919,1718169050041,-500.0,0.00017534,2]
[329194920,1718169050051,-500.0,0.00017534,2]
[329194921,1718169050062,-500.0,0.00017534,2]
[329194922,1718169050072,-500.0,0.00017534,2]
[329194923,1718169050082,-2018.92,0.00017534,2]
[329194924,1718169050092,-500.0,0.00017534,2]
[329194925,1718169050104,-5339.09,0.00017534,2]
[329194926,1718169050115,-541.88,0.00017534,2]
[329194927,1718169050125,-500.0,0.00017534,2]
[329194928,1718169050135,-500.0,0.00017534,2]
[329194929,1718169050145,-500.0,0.00017534,2]
[329194930,1718169050155,-500.0,0.00017534,2]
[329194931,1718169050165,-1019.32,0.00017534,2]
[329194932,1718169050179,-504.95465891,0.00017534,2]
[329194933,1718169050189,-500.0,0.00017534,2]
[329194934,1718169050200,-500.0,0.00017534,2]
[329194935,1718169050210,-1755.11,0.00017534,2]
[329194936,1718169050221,-500.0,0.00017534,2]
[329194937,1718169050230,-161.00519817,0.00017534,2]
[329194938,1718169050240,-500.0,0.00017534,2]
[329194939,1718169050250,-845.63,0.00017534,2]
[329194940,1718169050262,-494.78784879,0.00017534,2]
[329194941,1718169050272,-1147.04,0.00017534,2]
[329194942,1718169050282,-212.0,0.0001766,2]
[329194943,1718169050294,-728.52057922,0.00017708,2]
[329194944,1718169050304,-587.0,0.0001771,2]
[329194945,1718169050315,-500.0,0.00017807,2]
[329194946,1718169050328,-577.38,0.00017807,2]
[329194947,1718169050338,-1985.97,0.00017807,2]
[329194948,1718169050348,-609.35,0.00017807,2]
[329194949,1718169050358,-500.0,0.00017808,4]
[329194950,1718169050369,-500.0,0.00017808,2]
[329194951,1718169050379,-286.3,0.00017808,2]
[329194952,1718169050389,-390.28550313,0.00017808,2]
[329194953,1718169050399,-500.0,0.00017808,2]
[329194954,1718169050409,-2648.17,0.00017808,2]
[329194955,1718169050419,-500.0,0.00017808,2]
[329194956,1718169050429,-500.0,0.00017808,2]
[329194957,1718169050439,-500.0,0.00017808,2]
[329194958,1718169050449,-500.0,0.00017808,2]
[329194959,1718169050460,-509.65,0.00017808,2]
[329194960,1718169050470,-500.0,0.00017808,2]
[329194961,1718169050480,-637.75,0.00017808,2]
[329194962,1718169050491,-1134.13,0.00017808,2]
[329194963,1718169050501,-500.0,0.00017808,2]
[329194964,1718169050511,-500.0,0.00017808,2]
[329194965,1718169050522,-500.0,0.00017808,2]
[329194966,1718169050532,-500.0,0.00017808,2]
[329194967,1718169050542,-160.34758777,0.00017808,2]
[329194968,1718169050557,-500.0,0.00017808,2]
[329194969,1718169050568,-500.0,0.00017808,2]
[329194970,1718169050579,-715.2,0.00017808,2]
[329194971,1718169050589,-500.0,0.00017808,2]
[329194972,1718169050599,-504.66260054,0.00017808,2]
[329194973,1718169050612,-500.0,0.00017808,2]
[329194974,1718169050624,-500.0,0.00017808,2]
[329194975,1718169050635,-500.0,0.00017808,2]
[329194976,1718169050646,-500.0,0.00017808,2]
[329194977,1718169050656,-8622.5,0.00017808,2]
[329194978,1718169050666,-500.0,0.00017808,2]
[329194979,1718169050676,-669.69,0.00017808,2]
[329194980,1718169050686,-500.0,0.00017808,2]
[329194981,1718169050696,-500.0,0.00017808,2]
[329194982,1718169050707,-500.0,0.00017808,2]
[329194983,1718169050717,-500.0,0.00017808,2]
[329194984,1718169050727,-520.41,0.00017808,2]
[329194985,1718169050737,-500.0,0.00017808,2]
[329194986,1718169050747,-2928.43,0.00017808,2]
[329194987,1718169050758,-1488.13,0.00017808,2]
[329194988,1718169050768,-603.04,0.00017808,2]
[329194989,1718169050779,-1817.66,0.00017808,2]
[329194990,1718169050789,-630.79079905,0.00017808,2]
[329194991,1718169050800,-500.0,0.00017808,2]
[329194992,1718169050810,-625.44,0.00017808,2]
[329194993,1718169050821,-500.0,0.00017808,2]
[329194994,1718169050831,-7201.36,0.00017808,2]
[329194995,1718169050841,-500.0,0.00017808,2]
[329194996,1718169050851,-500.0,0.00017808,2]
[329194997,1718169050861,-500.0,0.00017808,2]
[329194998,1718169050873,-500.0,0.00017808,2]
[329194999,1718169050883,-2018.92,0.00017808,2]
[329195000,1718169050893,-500.0,0.00017808,2]
[329195001,1718169050904,-5339.09,0.00017808,2]
[329195002,1718169050914,-541.88,0.00017808,2]
[329195003,1718169050924,-155.83676024,0.00017808,2]
[329195004,1718169050934,-500.0,0.00017808,2]
[329195005,1718169050946,-500.0,0.00017808,2]
[329195006,1718169050956,-500.0,0.00017808,2]
[329195007,1718169050966,-1019.32,0.00017808,2]
[329195008,1718169050976,-394.24382746,0.00017808,2]
[329195009,1718169050986,-500.0,0.00017808,2]
[329195010,1718169050996,-1755.11,0.00017808,2]
[329195011,1718169051006,-500.0,0.00017808,2]
[329195012,1718169051017,-845.63,0.00017808,2]
[329195013,1718169051027,-1147.04,0.00017808,2]
[329195014,1718169051037,-212.0,0.00017888,2]
[329195015,1718169051048,-1985.97,0.00017897,2]
[329195016,1718169051059,-10491.92816074,0.00017898,2]
[329195017,1718169051070,-2765.44251206,0.00018,2]
[329195018,1718169051081,-632.99963654,0.00018,2]
[329195019,1718169051092,-155.04341216,0.00018,2]
[329195020,1718169051102,-1355.61945113,0.00018,2]
[329195021,1718169051113,-876.82850055,0.00018,2]
[329195022,1718169051123,-1999.999999,0.00018,2]
[329195023,1718169051133,-155.04341216,0.00018,2]
[329195024,1718169051143,-1036.68456979,0.00018,2]
[329195025,1718169051153,-204.17791001,0.00018,2]
[329195026,1718169051164,-1115.187625,0.00018,2]
[329195027,1718169051178,-500.0,0.00018081,2]
[329195028,1718169051188,-577.38,0.00018081,2]
[329195029,1718169051199,-1985.97,0.00018081,2]
[329195030,1718169051209,-609.35,0.00018081,2]
[329195031,1718169051223,-500.0,0.00018082,4]
[329195032,1718169051233,-500.0,0.00018082,2]
[329195033,1718169051243,-286.3,0.00018082,2]
[329195034,1718169051254,-500.0,0.00018082,2]
[329195035,1718169051265,-2648.17,0.00018082,2]
[329195036,1718169051275,-500.0,0.00018082,2]
[329195037,1718169051286,-514.81433297,0.00018082,2]
[329195038,1718169051296,-500.0,0.00018082,2]
[329195039,1718169051306,-170.68782108,0.00018082,2]
[329195040,1718169051316,-509.65,0.00018082,2]
[329195041,1718169051327,-500.0,0.00018082,2]
[329195042,1718169051337,-637.75,0.00018082,2]
[329195043,1718169051348,-1134.13,0.00018082,2]
[329195044,1718169051359,-500.0,0.00018082,2]
[329195045,1718169051369,-500.0,0.00018082,2]
[329195046,1718169051379,-505.69946728,0.00018082,2]
[329195047,1718169051389,-500.0,0.00018082,2]
[329195048,1718169051400,-500.0,0.00018082,2]
[329195049,1718169051410,-500.0,0.00018082,2]
[329195050,1718169051420,-715.2,0.00018082,2]
[329195051,1718169051430,-500.0,0.00018082,2]
[329195052,1718169051440,-500.0,0.00018082,2]
[329195053,1718169051450,-500.0,0.00018082,2]
[329195054,1718169051461,-500.0,0.00018082,2]
[329195055,1718169051471,-500.0,0.00018082,2]
[329195056,1718169051481,-8622.5,0.00018082,2]
[329195057,1718169051494,-500.0,0.00018082,2]
[329195058,1718169051506,-669.69,0.00018082,2]
[329195059,1718169051521,-500.0,0.00018082,2]
[329195060,1718169051535,-500.0,0.00018082,2]
[329195061,1718169051549,-172.43868174,0.00018082,2]
[329195062,1718169051562,-500.0,0.00018082,2]
[329195063,1718169051577,-520.41,0.00018082,2]
[329195064,1718169051591,-500.0,0.00018082,2]
[329195065,1718169051603,-2928.43,0.00018082,2]
[329195066,1718169051616,-1488.13,0.00018082,2]
[329195067,1718169051630,-603.04,0.00018082,2]
[329195068,1718169051644,-1817.66,0.00018082,2]
[329195069,1718169051657,-500.0,0.00018082,2]
[329195070,1718169051669,-625.44,0.00018082,2]
[329195071,1718169051682,-512.43162702,0.00018082,2]
[329195072,1718169051694,-7201.36,0.00018082,2]
[329195073,1718169051704,-588.26120182,0.00018082,2]
[329195074,1718169051718,-500.0,0.00018082,2]
[329195075,1718169051731,-505.14857162,0.00018082,2]
[329195076,1718169051744,-500.0,0.00018082,2]
[329195077,1718169051756,-2018.92,0.00018082,2]
[329195078,1718169051770,-500.0,0.00018082,2]
[329195079,1718169051783,-5339.09,0.00018082,2]
[329195080,1718169051796,-541.88,0.00018082,2]
[329195081,1718169051809,-500.0,0.00018082,2]
[329195082,1718169051822,-521.65340863,0.00018082,2]
[329195083,1718169051835,-522.65047904,0.00018082,2]
[329195084,1718169051864,-1019.32,0.00018082,2]
[329195085,1718169051880,-500.0,0.00018082,2]
[329195086,1718169051894,-1755.11,0.00018082,2]
[329195087,1718169051907,-500.0,0.00018082,2]
[329195088,1718169051921,-845.63,0.00018082,2]
[329195089,1718169051935,-1147.04,0.00018082,2]
[329195090,1718169051948,-212.0,0.00018115,2]
[329195091,1718169051962,-625.45420499,0.00018177,2]
[329195092,1718169051975,-383.1445845,0.00018301,2]
[329195093,1718169051990,-212.0,0.00018342,2]
[329195094,1718169052004,-577.38,0.00018355,2]
[329195095,1718169052016,-1985.97,0.00018355,2]
[329195096,1718169052027,-609.35,0.00018355,2]
[329195097,1718169052040,-500.0,0.00018356,4]
[329195098,1718169052051,-500.0,0.00018356,2]
[329195099,1718169052065,-286.3,0.00018356,2]
[329195100,1718169052080,-500.0,0.00018356,2]
[329195101,1718169052091,-2648.17,0.00018356,2]
[329195102,1718169052103,-310.85025111,0.00018356,2]
[329195103,1718169052114,-500.0,0.00018356,2]
[329195104,1718169052126,-509.65,0.00018356,2]
[329195105,1718169052139,-500.0,0.00018356,2]
[329195106,1718169052157,-637.75,0.00018356,2]
[329195107,1718169052169,-1134.13,0.00018356,2]
[329195108,1718169052185,-500.0,0.00018356,2]
[329195109,1718169052196,-500.0,0.00018356,2]
[329195110,1718169052208,-500.0,0.00018356,2]
[329195111,1718169052222,-500.0,0.00018356,2]
[329195112,1718169052234,-500.0,0.00018356,2]
[329195113,1718169052247,-715.2,0.00018356,2]
[329195114,1718169052260,-500.0,0.00018356,2]
[329195115,1718169052272,-500.0,0.00018356,2]
[329195116,1718169052285,-521.17724518,0.00018356,2]
[329195117,1718169052297,-595.62849973,0.00018356,2]
[329195118,1718169052309,-500.0,0.00018356,2]
[329195119,1718169052321,-8622.5,0.00018356,2]
[329195120,1718169052333,-635.867111,0.00018356,2]
[329195121,1718169052345,-669.69,0.00018356,2]
[329195122,1718169052358,-449.0730593,0.00018356,2]
[329195123,1718169052370,-500.0,0.00018356,2]
[329195124,1718169052385,-520.41,0.00018356,2]
[329195125,1718169052398,-500.0,0.00018356,2]
[329195126,1718169052410,-2928.43,0.00018356,2]
[329195127,1718169052422,-1488.13,0.00018356,2]
[329195128,1718169052433,-603.04,0.00018356,2]
[329195129,1718169052445,-1817.66,0.00018356,2]
[329195130,1718169052457,-500.0,0.00018356,2]
[329195131,1718169052469,-625.44,0.00018356,2]
[329195132,1718169052481,-7201.36,0.00018356,2]
[329195133,1718169052494,-500.0,0.00018356,2]
[329195134,1718169052506,-500.0,0.00018356,2]
[329195135,1718169052520,-2018.92,0.00018356,2]
[329195136,1718169052532,-500.0,0.00018356,2]
[329195137,1718169052550,-5339.09,0.00018356,2]
[329195138,1718169052571,-541.88,0.00018356,2]
[329195139,1718169052583,-500.0,0.00018356,2]
[329195140,1718169052595,-1019.32,0.00018356,2]
[329195141,1718169052607,-500.0,0.00018356,2]
[329195142,1718169052619,-1755.11,0.00018356,2]
[329195143,1718169052631,-500.0,0.00018356,2]
[329195144,1718169052643,-845.63,0.00018356,2]
[329195145,1718169052655,-1147.04,0.00018356,2]
[329195146,1718169052668,-606.91207968,0.000185,2]
[329195147,1718169052680,-1000.0,0.000185,2]
[329195148,1718169052692,-212.0,0.0001857,2]
[329195149,1718169052705,-166.666666,0.00018575,2]
[329195150,1718169052717,-500.0,0.00018629,2]
[329195151,1718169052730,-577.38,0.00018629,2]
[329195152,1718169052742,-1985.97,0.00018629,2]
[329195153,1718169052753,-609.35,0.00018629,2]
[329195154,1718169052765,-259.54075549,0.0001863,4]
[329195155,1718169052777,-500.0,0.0001863,2]
[329195156,1718169052790,-286.3,0.0001863,2]
[329195157,1718169052802,-500.0,0.0001863,2]
[329195158,1718169052814,-2648.17,0.0001863,2]
[329195159,1718169052827,-500.0,0.0001863,2]
[329195160,1718169052839,-509.65,0.0001863,2]
[329195161,1718169052850,-500.0,0.0001863,2]
[329195162,1718169052862,-637.75,0.0001863,2]
[329195163,1718169052873,-1134.13,0.0001863,2]
[329195164,1718169052885,-619.86637943,0.0001863,2]
[329195165,1718169052898,-500.0,0.0001863,2]
[329195166,1718169052909,-500.0,0.0001863,2]
[329195167,1718169052921,-500.0,0.0001863,2]
[329195168,1718169052933,-509.93422011,0.0001863,2]
[329195169,1718169052945,-715.2,0.0001863,2]
[329195170,1718169052956,-324.57038224,0.0001863,2]
[329195171,1718169052968,-500.0,0.0001863,2]
[329195172,1718169052980,-500.0,0.0001863,2]
[329195173,1718169052991,-8622.5,0.0001863,2]
[329195174,1718169053002,-669.69,0.0001863,2]
[329195175,1718169053014,-262.28007136,0.0001863,2]
[329195176,1718169053026,-520.41,0.0001863,2]
[329195177,1718169053037,-500.0,0.0001863,2]
[329195178,1718169053049,-2928.43,0.0001863,2]
[329195179,1718169053060,-1488.13,0.0001863,2]
[329195180,1718169053072,-603.04,0.0001863,2]
[329195181,1718169053084,-1817.66,0.0001863,2]
[329195182,1718169053096,-500.0,0.0001863,2]
[329195183,1718169053108,-625.44,0.0001863,2]
[329195184,1718169053120,-7201.36,0.0001863,2]
[329195185,1718169053134,-535.12747243,0.0001863,2]
[329195186,1718169053145,-500.0,0.0001863,2]
[329195187,1718169053158,-2018.92,0.0001863,2]
[329195188,1718169053170,-500.0,0.0001863,2]
[329195189,1718169053187,-5339.09,0.0001863,2]
[329195190,1718169053199,-541.88,0.0001863,2]
[329195191,1718169053211,-500.0,0.0001863,2]
[329195192,1718169053223,-1019.32,0.0001863,2]
[329195193,1718169053235,-500.0,0.0001863,2]
[329195194,1718169053247,-1755.11,0.0001863,2]
[329195195,1718169053260,-500.0,0.0001863,2]
[329195196,1718169053273,-845.63,0.0001863,2]
[329195197,1718169053285,-1147.04,0.0001863,2]
[329195198,1718169053298,-250.0,0.0001863,2]
[329195199,1718169053310,-5281.92082876,0.00018708,2]
[329195200,1718169053494,-1985.97,0.00018757,2]
[329195201,1718169053504,-212.0,0.00018797,2]
[329195202,1718169053515,-504.828,0.00018892,2]
[329195203,1718169053525,-151.22,0.00018892,2]
[329195204,1718169053536,-577.38,0.00018899,2]
[329195205,1718169053546,-577.38,0.00018899,2]
[329195206,1718169053572,-1985.97,0.00018899,2]
[329195207,1718169053585,-1985.97,0.00018899,2]
[329195208,1718169053596,-1985.97,0.00018899,2]
[329195209,1718169053606,-1985.97,0.00018899,2]
[329195210,1718169053617,-1985.97,0.00018899,2]
[329195211,1718169053628,-1986.03065221,0.00018899,2]
[329195212,1718169053639,-609.35,0.00018899,2]
[329195213,1718169053650,-609.35,0.00018899,2]
[329195214,1718169053661,-7710.66083061,0.000189,2]
[329195215,1718169053672,-577.38,0.00018903,2]
[329195216,1718169053682,-609.35,0.00018903,2]
[329195217,1718169053694,-500.0,0.00018904,2]
[329195218,1718169053704,-286.3,0.00018904,2]
[329195219,1718169053715,-500.0,0.00018904,2]
[329195220,1718169053726,-2648.17,0.00018904,2]
[329195221,1718169053737,-500.0,0.00018904,2]
[329195222,1718169053747,-509.65,0.00018904,2]
[329195223,1718169053758,-500.0,0.00018904,2]
[329195224,1718169053769,-637.75,0.00018904,2]
[329195225,1718169053779,-1134.13,0.00018904,2]
[329195226,1718169053791,-500.0,0.00018904,2]
[329195227,1718169053801,-500.0,0.00018904,2]
[329195228,1718169053812,-715.2,0.00018904,2]
[329195229,1718169053822,-500.0,0.00018904,2]
[329195230,1718169053832,-500.0,0.00018904,2]
[329195231,1718169053843,-8622.5,0.00018904,2]
[329195232,1718169053854,-669.69,0.00018904,2]
[329195233,1718169053864,-520.41,0.00018904,2]
[329195234,1718169053875,-500.0,0.00018904,2]
[329195235,1718169053885,-2928.43,0.00018904,2]
[329195236,1718169053895,-1488.13,0.00018904,2]
[329195237,1718169053906,-603.04,0.00018904,2]
[329195238,1718169053916,-1817.66,0.00018904,2]
[329195239,1718169053926,-500.0,0.00018904,2]
[329195240,1718169053937,-625.44,0.00018904,2]
[329195241,1718169053948,-7201.36,0.00018904,2]
[329195242,1718169053958,-252.97703757,0.00018904,2]
[329195243,1718169053968,-2018.92,0.00018904,2]
[329195244,1718169053979,-500.0,0.00018904,2]
[329195245,1718169053989,-5339.09,0.00018904,2]
[329195246,1718169054001,-541.88,0.00018904,2]
[329195247,1718169054011,-516.53957628,0.00018904,2]
[329195248,1718169054022,-1019.32,0.00018904,2]
[329195249,1718169054032,-500.0,0.00018904,2]
[329195250,1718169054043,-1755.11,0.00018904,2]
[329195251,1718169054053,-500.0,0.00018904,2]
[329195252,1718169054064,-845.63,0.00018904,2]
[329195253,1718169054076,-1147.04,0.00018904,2]
[329195254,1718169054088,-500.0,0.00018957,2]
[329195255,1718169054098,-577.38,0.00018957,2]
[329195256,1718169054109,-609.35,0.00018957,2]
[329195257,1718169054120,-3000.0,0.00018958,2]
[329195258,1718169054130,-3000.0,0.00018958,2]
[329195259,1718169054142,-3000.0,0.00018958,2]
[329195260,1718169054152,-3000.0,0.00018958,2]
[329195261,1718169054163,-3000.0,0.00018958,2]
[329195262,1718169054175,-500.0,0.00018999,2]